fUST/lending_fUST_20250120
["ID","MTS","AMOUNT","RATE_DAILY","PERIOD"]
[349602908,1737323452311,-500.0,0.00022876,3]
[349602909,1737323452323,-1178.19,0.00022876,3]
[349602910,1737323452335,-364.43635171,0.00022876,3]
[349602911,1737323452347,-500.0,0.00022876,3]
[349602912,1737323452360,-776.13,0.00022876,3]
[349602913,1737323452373,-500.0,0.00022876,3]
[349602914,1737323452387,-500.0,0.00022876,3]
[349602915,1737323452399,-637.18,0.00022876,3]
[349602916,1737323452411,-500.0,0.00022876,3]
[349602917,1737323452424,-500.0,0.00022876,3]
[349602918,1737323452435,-645.27,0.00022876,3]
[349602919,1737323452446,-3524.56,0.00022876,3]
[349602920,1737323452459,-1245.19,0.00022876,3]
[349602921,1737323452470,-500.0,0.00022876,3]
[349602922,1737323452482,-523.19854892,0.00022921,2]
[349602923,1737323452494,-228.15313383,0.00022921,2]
[349602924,1737323452506,-1000.0,0.00022921,2]
[349602925,1737323452517,-3554.51726875,0.00022934,3]
[349602926,1737323452529,-9541.23172388,0.00022993,2]
[349602927,1737323452542,-7438.69753278,0.00023,3]
[349602928,1737323452559,-1952.80312031,0.00023,2]
[349602929,1737323452571,-500.0,0.00023013,3]
[349602930,1737323452583,-500.0,0.00023013,3]
[349602931,1737323452596,-500.0,0.00023013,3]
[349602932,1737323452607,-179.09,0.00023013,3]
[349602933,1737323452619,-500.0,0.00023013,3]
[349602934,1737323452631,-500.0,0.00023013,3]
[349602935,1737323452642,-500.0,0.00023013,3]
[349602936,1737323452654,-500.0,0.00023013,2]
[349602937,1737323452666,-5128.64,0.00023013,3]
[349602938,1737323452678,-1718.15,0.00023013,3]
[349602939,1737323452690,-500.0,0.00023013,3]
[349602940,1737323452702,-659.4,0.00023013,3]
[349602941,1737323452714,-500.0,0.00023013,3]
[349602942,1737323452725,-958.83,0.00023013,3]
[349602943,1737323452737,-500.0,0.00023013,3]
[349602944,1737323452748,-636.07,0.00023013,3]
[349602945,1737323452760,-3192.03,0.00023013,3]
[349602946,1737323452772,-500.0,0.00023013,3]
[349602947,1737323452784,-500.0,0.00023013,3]
[349602948,1737323452794,-500.0,0.00023013,3]
[349602949,1737323452806,-500.0,0.00023013,3]
[349602950,1737323452816,-792.06,0.00023013,3]
[349602951,1737323452826,-500.0,0.00023013,3]
[349602952,1737323452835,-814.47,0.00023013,3]
[349602953,1737323452845,-1482.19,0.00023013,3]
[349602954,1737323452946,-9621.72,0.00023013,3]
[349602955,1737323452993,-500.0,0.00023013,3]
[349602956,1737323453003,-1178.19,0.00023013,3]
[349602957,1737323453013,-500.0,0.00023013,3]
[349602958,1737323453022,-776.13,0.00023013,3]
[349602959,1737323453032,-500.0,0.00023013,3]
[349602960,1737323453041,-500.0,0.00023013,3]
[349602961,1737323453051,-637.18,0.00023013,3]
[349602962,1737323453066,-500.0,0.00023013,3]
[349602963,1737323453076,-645.27,0.00023013,3]
[349602964,1737323453087,-500.0,0.00023013,3]
[349602965,1737323453097,-3524.56,0.00023013,3]
[349602966,1737323453107,-1245.19,0.00023013,3]
[349602967,1737323453117,-500.0,0.00023013,3]
[349602968,1737323453126,-3554.51726875,0.00023038,3]
[349602969,1737323453136,-9541.2317239,0.00023098,2]
[349602970,1737323453145,-3554.51726875,0.00023141,3]
[349602971,1737323453155,-500.0,0.0002315,3]
[349602972,1737323453164,-500.0,0.0002315,3]
[349602973,1737323453174,-500.0,0.0002315,3]
[349602974,1737323453183,-500.0,0.0002315,3]
[349602975,1737323453192,-500.0,0.0002315,3]
[349602976,1737323453202,-500.0,0.0002315,2]
[349602977,1737323453211,-5128.64,0.0002315,3]
[349602978,1737323453221,-1718.15,0.0002315,3]
[349602979,1737323453231,-500.0,0.0002315,3]
[349602980,1737323453240,-659.4,0.0002315,3]
[349602981,1737323453250,-500.0,0.0002315,3]
[349602982,1737323453259,-958.83,0.0002315,3]
[349602983,1737323453268,-500.0,0.0002315,3]
[349602984,1737323453278,-636.07,0.0002315,3]
[349602985,1737323453287,-3192.03,0.0002315,3]
[349602986,1737323453298,-184.03734308,0.0002315,3]
[349602987,1737323453311,-500.0,0.0002315,3]
[349602988,1737323453321,-500.0,0.0002315,3]
[349602989,1737323453330,-500.0,0.0002315,3]
[349602990,1737323453339,-792.06,0.0002315,3]
[349602991,1737323453348,-500.0,0.0002315,3]
[349602992,1737323453358,-814.47,0.0002315,3]
[349602993,1737323453367,-1482.19,0.0002315,3]
[349602994,1737323453378,-9621.72,0.0002315,3]
[349602995,1737323453387,-500.0,0.0002315,3]
[349602996,1737323453396,-1178.19,0.0002315,3]
[349602997,1737323453408,-500.0,0.0002315,3]
[349602998,1737323453418,-776.13,0.0002315,3]
[349602999,1737323453428,-500.0,0.0002315,3]
[349603000,1737323453438,-500.0,0.0002315,3]
[349603001,1737323453448,-637.18,0.0002315,3]
[349603002,1737323453457,-500.0,0.0002315,3]
[349603003,1737323453468,-645.27,0.0002315,3]
[349603004,1737323453478,-439.36,0.0002315,3]
[349603005,1737323453488,-3524.56,0.0002315,3]
[349603006,1737323453497,-1245.19,0.0002315,3]
[349603007,1737323453507,-500.0,0.0002315,3]
[349603008,1737323453516,-260.0,0.0002316,10]
[349603009,1737323453525,-3554.51726875,0.00023245,3]
[349603010,1737323453535,-301.39413098,0.00023286,2]
[349603011,1737323453544,-500.0,0.00023287,3]
[349603012,1737323453558,-500.0,0.00023287,3]
[349603013,1737323453568,-500.0,0.00023287,3]
[349603014,1737323453578,-500.0,0.00023287,3]
[349603015,1737323453588,-163.98,0.00023287,3]
[349603016,1737323453598,-500.0,0.00023287,2]
[349603017,1737323453607,-5128.64,0.00023287,3]
[349603018,1737323453618,-1718.15,0.00023287,3]
[349603019,1737323453630,-500.0,0.00023287,3]
[349603020,1737323453639,-659.4,0.00023287,3]
[349603021,1737323453649,-500.0,0.00023287,3]
[349603022,1737323453659,-958.83,0.00023287,3]
[349603023,1737323453669,-500.0,0.00023287,3]
[349603024,1737323453678,-636.07,0.00023287,3]
[349603025,1737323453688,-3192.03,0.00023287,3]
[349603026,1737323453697,-500.0,0.00023287,3]
[349603027,1737323453707,-500.0,0.00023287,3]
[349603028,1737323453716,-500.0,0.00023287,3]
[349603029,1737323453726,-792.06,0.00023287,3]
[349603030,1737323453736,-500.0,0.00023287,3]
[349603031,1737323453745,-814.47,0.00023287,3]
[349603032,1737323453755,-1482.19,0.00023287,3]
[349603033,1737323453764,-9621.72,0.00023287,3]
[349603034,1737323453774,-500.0,0.00023287,3]
[349603035,1737323453784,-1178.19,0.00023287,3]
[349603036,1737323453794,-500.0,0.00023287,3]
[349603037,1737323453808,-776.13,0.00023287,3]
[349603038,1737323453818,-500.0,0.00023287,3]
[349603039,1737323453827,-500.0,0.00023287,3]
[349603040,1737323453837,-637.18,0.00023287,3]
[349603041,1737323453847,-500.0,0.00023287,3]
[349603042,1737323453856,-645.27,0.00023287,3]
[349603043,1737323453866,-3524.56,0.00023287,3]
[349603044,1737323453876,-1245.19,0.00023287,3]
[349603045,1737323453886,-500.0,0.00023287,3]
[349603046,1737323453895,-536.0,0.0002333,2]
[349603047,1737323453906,-2063.0,0.0002333,2]
[349603048,1737323453915,-2308.0,0.0002333,2]
[349603049,1737323453926,-395.0,0.0002333,2]
[349603050,1737323453935,-150.472,0.0002333,2]
[349603051,1737323453944,-3554.51726875,0.00023348,3]
[349603052,1737323453953,-7438.69753278,0.00023424,3]
[349603053,1737323453962,-500.0,0.00023424,3]
[349603054,1737323453971,-500.0,0.00023424,3]
[349603055,1737323453981,-158.45,0.00023424,3]
[349603056,1737323453990,-180.92,0.00023424,3]
[349603057,1737323453999,-500.0,0.00023424,2]
[349603058,1737323454009,-5128.64,0.00023424,3]
[349603059,1737323454019,-1718.15,0.00023424,3]
[349603060,1737323454028,-500.0,0.00023424,3]
[349603061,1737323454038,-659.4,0.00023424,3]
[349603062,1737323454048,-500.0,0.00023424,3]
[349603063,1737323454062,-958.83,0.00023424,3]
[349603064,1737323454072,-500.0,0.00023424,3]
[349603065,1737323454081,-636.07,0.00023424,3]
[349603066,1737323454091,-3192.03,0.00023424,3]
[349603067,1737323454100,-500.0,0.00023424,3]
[349603068,1737323454109,-500.0,0.00023424,3]
[349603069,1737323454118,-500.0,0.00023424,3]
[349603070,1737323454127,-792.06,0.00023424,3]
[349603071,1737323454138,-500.0,0.00023424,3]
[349603072,1737323454147,-814.47,0.00023424,3]
[349603073,1737323454156,-1482.19,0.00023424,3]
[349603074,1737323454166,-9621.72,0.00023424,3]
[349603075,1737323454175,-500.0,0.00023424,3]
[349603076,1737323454185,-1178.19,0.00023424,3]
[349603077,1737323454195,-500.0,0.00023424,3]
[349603078,1737323454204,-776.13,0.00023424,3]
[349603079,1737323454213,-483.46,0.00023424,3]
[349603080,1737323454223,-500.0,0.00023424,3]
[349603081,1737323454232,-637.18,0.00023424,3]
[349603082,1737323454242,-500.0,0.00023424,3]
[349603083,1737323454252,-645.27,0.00023424,3]
[349603084,1737323454261,-3524.56,0.00023424,3]
[349603085,1737323454271,-1245.19,0.00023424,3]
[349603086,1737323454280,-500.0,0.00023424,3]
[349603087,1737323454290,-3554.51726875,0.00023452,3]
[349603088,1737323454300,-1200.0,0.00023507,2]
[349603089,1737323454313,-3554.51726875,0.00023555,3]
[349603090,1737323454322,-500.0,0.00023561,3]
[349603091,1737323454332,-500.0,0.00023561,3]
[349603092,1737323454342,-196.74964671,0.00023561,2]
[349603093,1737323454352,-5128.64,0.00023561,3]
[349603094,1737323454362,-1718.15,0.00023561,3]
[349603095,1737323454372,-500.0,0.00023561,3]
[349603096,1737323454384,-659.4,0.00023561,3]
[349603097,1737323454393,-500.0,0.00023561,3]
[349603098,1737323454402,-958.83,0.00023561,3]
[349603099,1737323454413,-500.0,0.00023561,3]
[349603100,1737323454424,-636.07,0.00023561,3]
[349603101,1737323454434,-3192.03,0.00023561,3]
[349603102,1737323454444,-500.0,0.00023561,3]
[349603103,1737323454454,-500.0,0.00023561,3]
[349603104,1737323454464,-500.0,0.00023561,3]
[349603105,1737323454474,-792.06,0.00023561,3]
[349603106,1737323454485,-500.0,0.00023561,3]
[349603107,1737323454495,-814.47,0.00023561,3]
[349603108,1737323454505,-1482.19,0.00023561,3]
[349603109,1737323454515,-9621.72,0.00023561,3]
[349603110,1737323454526,-500.0,0.00023561,3]
[349603111,1737323454536,-1178.19,0.00023561,3]
[349603112,1737323454547,-500.0,0.00023561,3]
[349603113,1737323454562,-776.13,0.00023561,3]
[349603114,1737323454573,-474.93414412,0.00023561,3]
[349603115,1737323454583,-637.18,0.00023561,3]
[349603116,1737323454593,-500.0,0.00023561,3]
[349603117,1737323454603,-645.27,0.00023561,3]
[349603118,1737323454613,-3524.56,0.00023561,3]
[349603119,1737323454622,-1245.19,0.00023561,3]
[349603120,1737323454633,-500.0,0.00023561,3]
[349603121,1737323454643,-300.0,0.000236,10]
[349603122,1737323454652,-1500.0,0.00023622,2]
[349603123,1737323454662,-3554.51726875,0.00023659,3]
[349603124,1737323454672,-500.0,0.00023698,3]
[349603125,1737323454681,-500.0,0.00023698,3]
[349603126,1737323454691,-5128.64,0.00023698,3]
[349603127,1737323454701,-1718.15,0.00023698,3]
[349603128,1737323454711,-500.0,0.00023698,3]
[349603129,1737323454720,-659.4,0.00023698,3]
[349603130,1737323454730,-500.0,0.00023698,3]
[349603131,1737323454739,-958.83,0.00023698,3]
[349603132,1737323454750,-500.0,0.00023698,3]
[349603133,1737323454759,-636.07,0.00023698,3]
[349603134,1737323454768,-3192.03,0.00023698,3]
[349603135,1737323454778,-500.0,0.00023698,3]
[349603136,1737323454787,-500.0,0.00023698,3]
[349603137,1737323454797,-500.0,0.00023698,3]
[349603138,1737323454810,-792.06,0.00023698,3]
[349603139,1737323454819,-500.0,0.00023698,3]
[349603140,1737323454828,-814.47,0.00023698,3]
[349603141,1737323454838,-1482.19,0.00023698,3]
[349603142,1737323454847,-9621.72,0.00023698,3]
[349603143,1737323454856,-500.0,0.00023698,3]
[349603144,1737323454867,-1178.19,0.00023698,3]
[349603145,1737323454877,-500.0,0.00023698,3]
[349603146,1737323454885,-776.13,0.00023698,3]
[349603147,1737323454894,-637.18,0.00023698,3]
[349603148,1737323454903,-500.0,0.00023698,3]
[349603149,1737323454912,-645.27,0.00023698,3]
[349603150,1737323454921,-3524.56,0.00023698,3]
[349603151,1737323454930,-1245.19,0.00023698,3]
[349603152,1737323454939,-500.0,0.00023698,3]
[349603153,1737323454948,-9228.52,0.000237,14]
[349603154,1737323454957,-420.0,0.0002371,2]
[349603155,1737323454967,-3554.51726875,0.00023762,3]
[349603156,1737323454976,-500.0,0.00023835,3]
[349603157,1737323454986,-593.23,0.00023835,3]
[349603158,1737323454997,-5128.64,0.00023835,3]
[349603159,1737323455007,-1718.15,0.00023835,3]
[349603160,1737323455018,-500.0,0.00023835,3]
[349603161,1737323455028,-659.4,0.00023835,3]
[349603162,1737323455038,-500.0,0.00023835,3]
[349603163,1737323455048,-958.83,0.00023835,3]
[349603164,1737323455063,-500.0,0.00023835,3]
[349603165,1737323455073,-636.07,0.00023835,3]
[349603166,1737323455083,-3192.03,0.00023835,3]
[349603167,1737323455092,-500.0,0.00023835,3]
[349603168,1737323455102,-428.69,0.00023835,3]
[349603169,1737323455111,-500.0,0.00023835,3]
[349603170,1737323455120,-792.06,0.00023835,3]
[349603171,1737323455129,-500.0,0.00023835,3]
[349603172,1737323455139,-814.47,0.00023835,3]
[349603173,1737323455148,-1482.19,0.00023835,3]
[349603174,1737323455157,-9621.72,0.00023835,3]
[349603175,1737323455166,-500.0,0.00023835,3]
[349603176,1737323455176,-1178.19,0.00023835,3]
[349603177,1737323455185,-500.0,0.00023835,3]
[349603178,1737323455195,-776.13,0.00023835,3]
[349603179,1737323455204,-637.18,0.00023835,3]
[349603180,1737323455213,-500.0,0.00023835,3]
[349603181,1737323455223,-645.27,0.00023835,3]
[349603182,1737323455233,-3524.56,0.00023835,3]
[349603183,1737323455242,-1245.19,0.00023835,3]
[349603184,1737323455252,-500.0,0.00023835,3]
[349603185,1737323455262,-3554.51726875,0.00023866,3]
[349603186,1737323455271,-1500.0,0.00023922,2]
[349603187,1737323455281,-3554.51726875,0.00023969,3]
[349603188,1737323455290,-500.0,0.00023972,3]
[349603189,1737323455299,-5128.64,0.00023972,3]
[349603190,1737323455315,-1718.15,0.00023972,3]
[349603191,1737323455412,-500.0,0.00023972,3]
[349603192,1737323455423,-659.4,0.00023972,3]
[349603193,1737323455432,-500.0,0.00023972,3]
[349603194,1737323455441,-958.83,0.00023972,3]
[349603195,1737323455450,-500.0,0.00023972,3]
[349603196,1737323455459,-636.07,0.00023972,3]
[349603197,1737323455470,-3192.03,0.00023972,3]
[349603198,1737323455480,-500.0,0.00023972,3]
[349603199,1737323455489,-500.0,0.00023972,3]
[349603200,1737323455500,-792.06,0.00023972,3]
[349603201,1737323455509,-179.96970745,0.00023972,3]
[349603202,1737323455518,-814.47,0.00023972,3]
[349603203,1737323455527,-1482.19,0.00023972,3]
[349603204,1737323455537,-9621.72,0.00023972,3]
[349603205,1737323455546,-500.0,0.00023972,3]
[349603206,1737323455559,-1178.19,0.00023972,3]
[349603207,1737323455569,-500.0,0.00023972,3]
[349603208,1737323455579,-776.13,0.00023972,3]
[349603209,1737323455588,-637.18,0.00023972,3]
[349603210,1737323455598,-500.0,0.00023972,3]
[349603211,1737323455607,-645.27,0.00023972,3]
[349603212,1737323455617,-3524.56,0.00023972,3]
[349603213,1737323455627,-1245.19,0.00023972,3]
[349603214,1737323455636,-425.54,0.00023972,3]
[349603215,1737323455646,-154.0,0.00023988,2]
[349603216,1737323455655,-154.0,0.00023988,2]
[349603217,1737323455664,-154.0,0.00023988,2]
[349603218,1737323455674,-154.0,0.00023988,2]
[349603219,1737323455683,-154.0,0.00023988,2]
[349603220,1737323455693,-154.0,0.00023988,2]
[349603221,1737323455702,-154.0,0.00023988,2]
[349603222,1737323455711,-154.0,0.00023988,2]
[349603223,1737323455721,-154.0,0.00023988,2]
[349603224,1737323455729,-154.0,0.00023988,2]
[349603225,1737323455739,-154.0,0.00023988,2]
[349603226,1737323455748,-154.0,0.00023988,2]
[349603227,1737323455757,-154.0,0.00023988,2]
[349603228,1737323455767,-154.0,0.00023988,2]
[349603229,1737323455776,-154.0,0.00023988,2]
[349603230,1737323455785,-154.0,0.00023988,2]
[349603231,1737323455795,-169.63,0.00023988,2]
[349603232,1737323455810,-151.0,0.00024,8]
[349603233,1737323455819,-151.0,0.00024022,7]
[349603234,1737323455828,-8812.25798129,0.00024032,2]
[349603235,1737323455837,-3554.51726875,0.00024072,3]
[349603236,1737323455846,-1081.76239548,0.00024079,20]
[349603237,1737323455855,-2000.0,0.000241,2]
[349603238,1737323455864,-153.11,0.000241,31]
[349603239,1737323455873,-153.11,0.000241,31]
[349603240,1737323455882,-153.11,0.000241,31]
[349603241,1737323455891,-153.11,0.000241,31]
[349603242,1737323455900,-153.11,0.000241,31]
[349603243,1737323455909,-153.11,0.000241,31]
[349603244,1737323455918,-153.11,0.000241,31]
[349603245,1737323455927,-1000.0,0.00024101,2]
[349603246,1737323455936,-605.65,0.00024109,3]
[349603247,1737323455945,-5128.64,0.00024109,3]
[349603248,1737323455955,-1718.15,0.00024109,3]
[349603249,1737323455964,-153.44,0.00024109,3]
[349603250,1737323455974,-659.4,0.00024109,3]
[349603251,1737323455983,-500.0,0.00024109,3]
[349603252,1737323455992,-958.83,0.00024109,3]
[349603253,1737323456002,-500.0,0.00024109,3]
[349603254,1737323456011,-636.07,0.00024109,3]
[349603255,1737323456020,-3192.03,0.00024109,3]
[349603256,1737323456030,-500.0,0.00024109,3]
[349603257,1737323456039,-500.0,0.00024109,3]
[349603258,1737323456049,-792.06,0.00024109,3]
[349603259,1737323456064,-814.47,0.00024109,3]
[349603260,1737323456073,-1482.19,0.00024109,3]
[349603261,1737323456083,-9621.72,0.00024109,3]
[349603262,1737323456093,-500.0,0.00024109,3]
[349603263,1737323456103,-1178.19,0.00024109,3]
[349603264,1737323456112,-500.0,0.00024109,3]
[349603265,1737323456122,-776.13,0.00024109,3]
[349603266,1737323456131,-637.18,0.00024109,3]
[349603267,1737323456141,-500.0,0.00024109,3]
[349603268,1737323456151,-645.27,0.00024109,3]
[349603269,1737323456160,-3524.56,0.00024109,3]
[349603270,1737323456170,-1245.19,0.00024109,3]
[349603271,1737323456179,-2577.0,0.00024128,7]
[349603272,1737323456188,-7438.69753278,0.00024128,7]
[349603273,1737323456198,-160.0,0.0002414,4]
[349603274,1737323456207,-160.0,0.0002414,5]
[349603275,1737323456216,-620.39758317,0.00024173,2]
[349603276,1737323456226,-500.0,0.00024173,2]
[349603277,1737323456235,-500.0,0.00024173,2]
[349603278,1737323456244,-500.0,0.00024173,2]
[349603279,1737323456253,-272.45948816,0.00024173,2]
[349603280,1737323456263,-500.0,0.00024173,2]
[349603281,1737323456272,-558.90124153,0.00024173,2]
[349603282,1737323456282,-500.0,0.00024173,2]
[349603283,1737323456292,-500.0,0.00024173,2]
[349603284,1737323456301,-500.0,0.00024173,2]
[349603285,1737323456315,-500.0,0.00024173,2]
[349603286,1737323456325,-568.12816177,0.00024173,2]
[349603287,1737323456334,-500.0,0.00024173,2]
[349603288,1737323456343,-500.0,0.00024173,2]
[349603289,1737323456353,-252.54,0.00024173,2]
[349603290,1737323456363,-186.0,0.00024173,2]
[349603291,1737323456373,-500.0,0.00024175,14]
[349603292,1737323456386,-500.0,0.00024175,14]
[349603293,1737323456396,-500.0,0.00024175,14]
[349603294,1737323456407,-500.0,0.00024175,14]
[349603295,1737323456418,-500.0,0.00024175,9]
[349603296,1737323456427,-500.0,0.00024175,9]
[349603297,1737323456437,-3554.51726875,0.00024176,3]
[349603298,1737323456446,-151.0,0.00024181,15]
[349603299,1737323456458,-500.0,0.00024188,2]
[349603300,1737323456468,-79671.61922182,0.00024199,5]
[349603301,1737323456477,-1077224.63377958,0.000242,61]
[349603302,1737323456558,-41884.40804,0.000242,61]
[349603303,1737323456631,-500.0,0.00021917,3]
[349603304,1737323456641,-500.0,0.00022054,3]
[349603305,1737323456650,-457.3610575,0.00024192,2]
[349603306,1737323456660,-4887.22060582,0.000242,61]
[349603307,1737323456671,-20670.32710519,0.000242,61]
[349603308,1737323456683,-1040.5,0.000242,61]
[349603309,1737323456695,-7200.07396919,0.000242,61]
[349603313,1737324209415,-315.0,0.0002,3]
[349603314,1737324209447,-314.0,0.0002,3]
[349603315,1737324209478,-314.0,0.0002,3]
[349603316,1737324209509,-314.0,0.0002,3]
[349603317,1737324239142,161.778409,0.00013973,2]
[349603318,1737324241726,321.30163543,0.000199,2]
[349603321,1737324309429,3417.56269569,0.00023561,120]
[349603464,1737324637946,-500.0,0.00020363,2]
[349603466,1737324637957,-3123.0,0.000208,2]
[349603469,1737324637968,-574.55114076,0.00021461,2]
[349603471,1737324637981,-500.0,0.00021816,7]
[349603473,1737324637994,-854.29718947,0.00021817,2]
[349603476,1737324638004,-165.172,0.00021915,2]
[349603478,1737324638015,-300.0,0.00021916,2]
[349603480,1737324638026,-190.66988817,0.00021917,3]
[349603482,1737324638040,-142.00578803,0.00021917,3]
[349603484,1737324638051,-351.64421197,0.00021917,3]
[349603487,1737324638064,-148.35578803,0.00021917,3]
[349603489,1737324638075,-500.0,0.00021917,3]
[349603491,1737324638085,-500.0,0.00021917,3]
[349603493,1737324638095,-502.33708747,0.00021917,3]
[349603495,1737324638106,-500.0,0.00021917,3]
[349603498,1737324638117,-500.0,0.00021917,3]
[349603500,1737324638127,-500.0,0.00021917,3]
[349603502,1737324638138,-500.0,0.00021917,3]
[349603504,1737324638148,-500.0,0.00021917,3]
[349603506,1737324638161,-500.0,0.00021917,3]
[349603508,1737324638172,-500.0,0.00021917,3]
[349603511,1737324638183,-500.0,0.00021917,3]
[349603513,1737324638194,-500.0,0.00021917,3]
[349603515,1737324638205,-365.82308792,0.00021917,3]
[349603517,1737324638216,-160.84,0.00021917,3]
[349603519,1737324638227,-500.0,0.00021917,3]
[349603521,1737324638238,-500.0,0.00021917,3]
[349603524,1737324638249,-500.0,0.00021917,3]
[349603526,1737324638260,-500.0,0.00021917,3]
[349603528,1737324638270,-359.82714266,0.00021917,3]
[349603530,1737324638281,-500.0,0.00021917,3]
[349603532,1737324638291,-500.0,0.00021917,3]
[349603534,1737324638302,-500.0,0.00021917,3]
[349603537,1737324638313,-500.0,0.00021917,3]
[349603539,1737324638324,-500.0,0.00021917,3]
[349603541,1737324638335,-500.0,0.00021917,3]
[349603543,1737324638346,-500.0,0.00021917,3]
[349603545,1737324638357,-542.23011617,0.00021917,3]
[349603547,1737324638368,-500.0,0.00021917,3]
[349603550,1737324638379,-500.0,0.00021917,3]
[349603552,1737324638389,-500.0,0.00021917,3]
[349603554,1737324638400,-500.0,0.00021917,3]
[349603556,1737324638413,-500.0,0.00021917,3]
[349603558,1737324638426,-500.0,0.00021917,3]
[349603560,1737324638437,-500.0,0.00021917,3]
[349603563,1737324638448,-500.0,0.00021917,3]
[349603565,1737324638459,-500.0,0.00021917,3]
[349603567,1737324638470,-500.0,0.00021917,3]
[349603569,1737324638481,-500.0,0.00021917,3]
[349603571,1737324638492,-500.0,0.00021917,3]
[349603573,1737324638502,-500.0,0.00021917,3]
[349603575,1737324638513,-500.0,0.00021917,3]
[349603578,1737324638524,-500.0,0.00021917,3]
[349603580,1737324638535,-500.0,0.00021917,2]
[349603582,1737324638547,-500.0,0.00021917,3]
[349603584,1737324638558,-500.0,0.00021917,3]
[349603586,1737324638569,-489.98121912,0.00021917,3]
[349603588,1737324638578,-4853.11,0.00021917,3]
[349603590,1737324638587,-1993.2,0.00021917,3]
[349603592,1737324638597,-881.91,0.00021917,3]
[349603594,1737324638607,-168.54442524,0.00021917,3]
[349603596,1737324638616,-500.0,0.00021917,3]
[349603617,1737324638810,-500.0,0.00021917,3]
[349603619,1737324638823,-500.0,0.00021917,3]
[349603621,1737324638834,-500.0,0.00021917,3]
[349603623,1737324638843,-8689.86,0.00021917,3]
[349603625,1737324638852,-500.0,0.00021917,3]
[349603627,1737324638862,-500.0,0.00021917,3]
[349603629,1737324638872,-540.95474537,0.00021917,2]
[349603631,1737324638881,-500.0,0.00021917,3]
[349603633,1737324638890,-1226.58,0.00021917,3]
[349603636,1737324638900,-500.0,0.00021917,3]
[349603637,1737324638910,-3967.21,0.00021917,3]
[349603639,1737324638920,-500.0,0.00021917,3]
[349603642,1737324638930,-500.0,0.00021917,3]
[349603643,1737324638939,-663.29,0.00021917,3]
[349603646,1737324638948,-500.0,0.00021917,3]
[349603647,1737324638957,-500.0,0.00021917,3]
[349603649,1737324638966,-500.0,0.00021917,3]
[349603652,1737324638976,-1715.53,0.00021917,3]
[349603653,1737324638986,-1016.52,0.00021917,3]
[349603655,1737324638995,-500.0,0.00021917,3]
[349603657,1737324639005,-500.0,0.00021917,3]
[349603659,1737324639014,-500.0,0.00021917,3]
[349603661,1737324639023,-500.0,0.00021917,3]
[349603663,1737324639033,-1163.17,0.00021917,3]
[349603665,1737324639042,-500.0,0.00021917,3]
[349603668,1737324639051,-5107.16,0.00021917,3]
[349603669,1737324639060,-500.0,0.00021917,3]
[349603672,1737324639070,-2259.45,0.00021917,3]
[349603674,1737324639079,-1278.11,0.00021917,3]